bitfinex/quotes_SOLUSD_20250621
["timestamp","ask_amount","ask_price","bid_price","bid_amount"]
[1750544592600,11.12990134,134.75,134.68,18.56142484]
[1750544592601,0.74,134.73,134.69,15.18402101]
[1750544592898,11.12990134,134.7,134.69,7.76]
[1750544593465,0.74,134.69,134.63,17.20640134]
[1750544593768,0.74,134.67,134.63,7.76]
[1750544594091,11.12990134,134.7,134.66,11.12990134]
[1750544594396,11.12990134,134.7,134.67,7.42555877]
[1750544594795,11.12990134,134.69,134.67,7.42555877]
[1750544596372,11.12990134,134.7,134.66,19.25601154]
[1750544596768,11.12990134,134.7,134.66,8.1261102]
[1750544597296,11.12990134,134.69,134.66,8.1261102]
[1750544597602,11.12990134,134.68,134.66,7.4261102]
[1750544598080,11.12990134,134.69,134.66,7.4261102]
[1750544598488,0.74,134.71,134.66,8.1261102]
[1750544598696,11.12990134,134.7,134.66,8.1261102]
[1750544599576,11.12990134,134.69,134.66,0.7]
[1750544600392,11.12990134,134.68,134.64,18.55695286]
[1750544600597,11.86990134,134.68,134.64,18.55695286]
[1750544600805,11.86990134,134.68,134.64,11.82990134]
[1750544601032,11.12990134,134.65,134.62,7.76]
[1750544601314,11.12990134,134.63,134.62,7.76]
[1750544601608,11.12990134,134.64,134.62,7.76]
[1750544602997,11.12990134,134.63,134.62,7.76]
[1750544603196,11.86990134,134.63,134.59,7.76]
[1750544603377,11.12990134,134.62,134.59,7.76]
[1750544603696,11.86990134,134.6,134.59,7.76]
[1750544603888,11.86990134,134.6,134.54,59.94990134]
[1750544604098,11.12990134,134.58,134.55,7.76]
[1750544604283,11.12990134,134.56,134.55,7.76]
[1750544604483,11.12990134,134.56,134.51,8.46]
[1750544604679,26.0,134.58,134.51,8.46]
[1750544604680,11.12990134,134.54,134.51,7.76]
[1750544604890,11.12990134,134.54,134.51,15.19429537]
[1750544605087,0.74,134.58,134.52,0.7]
[1750544605316,11.12990134,134.56,134.53,0.7]
[1750544606017,11.12990134,134.56,134.54,7.43273375]
[1750544608315,8.16904209,134.61,134.54,19.26263509]
[1750544608498,11.12990134,134.57,134.53,18.56299915]
[1750544608819,11.12990134,134.56,134.51,19.26381008]
[1750544609005,11.12990134,134.54,134.52,7.76]
[1750544609392,11.12990134,134.53,134.52,7.76]
[1750544610917,11.12990134,134.53,134.47,7.43639256]
[1750544610918,37.86990134,134.53,134.47,7.43639256]
[1750544611123,11.12990134,134.48,134.44,7.76]
[1750544611292,11.12990134,134.45,134.42,56.27882723]
[1750544611494,11.12990134,134.44,134.42,55.9]
[1750544611707,11.12990134,134.43,134.42,7.76]
[1750544612222,11.12990134,134.43,134.39,0.7]
[1750544612445,11.12990134,134.4,134.36,15.82255655]
[1750544612628,26.74,134.44,134.36,7.68]
[1750544612629,11.12990134,134.38,134.36,7.68]
[1750544612932,0.74,134.45,134.37,11.82990134]
[1750544613141,11.12990134,134.43,134.38,0.7]
[1750544613449,11.12990134,134.39,134.35,8.14318674]
[1750544613935,7.43941045,134.42,134.35,8.14318674]
[1750544613936,11.12990134,134.38,134.35,8.14318674]
[1750544614136,18.64964886,134.42,134.35,8.14318674]
[1750544614320,18.64964886,134.42,134.34,26.25355184]
[1750544614321,11.12990134,134.38,134.34,26.25355184]
[1750544614516,11.12990134,134.35,134.34,7.68]
[1750544614931,18.6376375,134.35,134.34,7.68]
[1750544615839,18.6376375,134.36,134.34,15.12379931]
[1750544616608,18.6376375,134.36,134.34,7.68]
[1750544616809,0.74,134.39,134.34,7.68]
[1750544616810,18.6376375,134.35,134.34,7.68]
[1750544617734,18.6376375,134.35,134.26,1.6464]
[1750544617735,0.74,134.34,134.29,7.68]
[1750544618033,18.6376375,134.3,134.29,7.68]
[1750544618237,0.74,134.34,134.29,15.12657085]
[1750544618409,26.0,134.35,134.3,18.6376375]
[1750544618609,26.0,134.35,134.31,19.3376375]
[1750544618610,18.6376375,134.35,134.31,19.3376375]
[1750544618929,18.6376375,134.39,134.34,18.6376375]
[1750544619127,18.6376375,134.39,134.34,19.3376375]
[1750544619328,7.922,134.42,134.35,27.0176375]
[1750544619531,18.6376375,134.42,134.38,7.44158356]
[1750544620421,18.6376375,134.41,134.38,7.44158356]
[1750544620622,18.6376375,134.41,134.37,7.44213619]
[1750544620823,18.6376375,134.41,134.37,26.07977369]
[1750544621032,18.6376375,134.41,134.37,26.77977369]
[1750544622440,18.6376375,134.41,134.36,7.44255436]
[1750544622641,18.6376375,134.41,134.36,26.83019186]
[1750544623952,18.6376375,134.41,134.37,18.6376375]
[1750544624135,19.3476375,134.4,134.35,18.6376375]
[1750544624340,18.6376375,134.38,134.34,26.3176375]
[1750544624827,18.6376375,134.38,134.34,27.0676375]
[1750544625448,18.6376375,134.38,134.34,34.5111705]
[1750544626458,18.6376375,134.39,134.35,19.3876375]
[1750544626633,18.6376375,134.4,134.36,18.6376375]
[1750544626958,18.6376375,134.39,134.36,0.75]
[1750544627634,18.6376375,134.39,134.35,26.08064728]
[1750544627838,18.6376375,134.38,134.34,26.3176375]
[1750544628039,18.6376375,134.38,134.34,7.68]
[1750544628558,18.6376375,134.36,134.34,7.68]
[1750544629746,7.44146611,134.39,134.3,27.0676375]
[1750544629747,18.6376375,134.35,134.3,27.0676375]
[1750544629952,34.15225658,134.37,134.3,8.43]
[1750544629953,18.6376375,134.34,134.3,8.43]
[1750544630340,26.71,134.37,134.3,34.51351096]
[1750544630557,18.6376375,134.36,134.31,18.6376375]
[1750544630756,18.6376375,134.36,134.32,0.75]
[1750544630957,18.6376375,134.35,134.32,0.75]
[1750544631446,26.0,134.37,134.3,33.74091441]
[1750544631447,18.6376375,134.34,134.3,33.76351096]
[1750544631647,18.6376375,134.33,134.3,7.68]
[1750544631852,18.6376375,134.32,134.27,19.3876375]
[1750544632028,18.6376375,134.3,134.26,26.3376375]
[1750544632227,18.6376375,134.34,134.29,18.6376375]
[1750544632434,18.6376375,134.34,134.3,18.6376375]
[1750544632755,18.6376375,134.34,134.29,18.6376375]
[1750544633054,18.6376375,134.33,134.29,19.3876375]
[1750544633247,26.0,134.35,134.28,18.6376375]
[1750544633248,18.6376375,134.32,134.28,18.6376375]
[1750544633634,0.71,134.34,134.29,7.44657085]
[1750544633962,18.6376375,134.32,134.29,7.44657085]
[1750544634257,0.71,134.37,134.31,19.3876375]
[1750544634459,18.6376375,134.36,134.32,18.6376375]
[1750544634664,18.6376375,134.36,134.32,19.3876375]
[1750544635246,9.04442537,134.39,134.32,19.3876375]
[1750544635437,7.44142537,134.39,134.33,0.75]
[1750544635643,18.6376375,134.4,134.36,18.6376375]
[1750544635969,18.6376375,134.4,134.35,26.08088275]
[1750544636353,18.6376375,134.39,134.35,26.08088275]
[1750544636972,18.6376375,134.38,134.34,7.44372559]
[1750544637344,18.6376375,134.38,134.34,26.08136309]
[1750544637545,18.6376375,134.38,134.34,7.44372559]
[1750544637760,33.44105599,134.39,134.34,7.44372559]
[1750544637761,18.6376375,134.37,134.34,7.44372559]
[1750544637948,18.6376375,134.38,134.34,7.44372559]
[1750544638269,18.6376375,134.38,134.34,26.08136309]
[1750544638473,18.6376375,134.38,134.34,26.83136309]
[1750544639258,26.0,134.39,134.34,26.83136309]
[1750544639468,18.6376375,134.38,134.34,26.83136309]
[1750544640767,18.6376375,134.38,134.34,19.3876375]
[1750544640951,33.44105707,134.39,134.33,33.78182827]
[1750544641151,18.6376375,134.38,134.34,18.6376375]
[1750544641676,18.6376375,134.36,134.33,7.7]
[1750544642064,18.6376375,134.37,134.33,15.1442975]
[1750544643091,44.6376375,134.39,134.35,19.3876375]
[1750544643268,18.6376375,134.4,134.36,18.6376375]
[1750544643578,18.6376375,134.38,134.34,18.6376375]
[1750544643789,18.6376375,134.39,134.34,18.6376375]
[1750544643989,18.6376375,134.39,134.34,19.3876375]
[1750544644765,18.6376375,134.37,134.33,33.78185803]
[1750544645092,18.6376375,134.37,134.33,34.53185803]
[1750544645589,18.6376375,134.37,134.33,15.14422053]
[1750544646272,18.6376375,134.37,134.33,34.53185803]
[1750544646790,18.6376375,134.36,134.33,7.7]
[1750544647785,18.6376375,134.36,134.33,15.144289]
[1750544648285,0.71,134.38,134.33,7.7]
[1750544648286,18.6376375,134.35,134.33,7.7]
[1750544648773,18.6376375,134.36,134.33,7.7]
[1750544648972,0.71,134.41,134.33,33.78193349]
[1750544649185,18.6376375,134.37,134.33,33.78193349]
[1750544649486,5.49481204,134.36,134.33,15.14429599]
[1750544649670,18.6376375,134.37,134.33,15.14429599]
[1750544649877,5.49815451,134.36,134.33,15.14429599]
[1750544650083,18.6376375,134.37,134.33,15.14429599]
[1750544650277,5.49811458,134.36,134.33,15.14429599]
[1750544650609,27.79627379,134.42,134.35,18.6376375]
[1750544650610,6.87367197,134.41,134.35,18.6376375]
[1750544650903,11.16772569,134.4,134.34,0.75]
[1750544651195,11.16772569,134.38,134.34,11.91772569]
[1750544651401,33.58367197,134.42,134.34,11.91772569]
[1750544651576,11.16772569,134.39,134.34,11.91772569]
[1750544651897,5.51009837,134.38,134.35,0.72]
[1750544652103,11.16772569,134.39,134.36,7.44269127]
[1750544652274,5.5104999,134.38,134.36,7.44269127]
[1750544652476,11.16772569,134.39,134.36,7.44269127]
[1750544652791,5.51123515,134.38,134.36,7.44269127]
[1750544652997,11.16772569,134.39,134.36,7.44269127]
[1750544653202,5.5194441,134.38,134.36,7.44269127]
[1750544653397,6.87367197,134.41,134.37,11.16772569]
[1750544653614,5.51943907,134.4,134.37,11.16772569]
[1750544653897,5.51943907,134.39,134.37,0.72]
[1750544654071,5.5299461,134.38,134.37,0.72]
[1750544655009,5.5299461,134.38,134.36,63.93714515]
[1750544655192,5.5299461,134.37,134.36,63.93714515]
[1750544655389,6.87367197,134.42,134.38,0.72]
[1750544655575,6.87367197,134.42,134.37,18.64964886]
[1750544655576,5.53921468,134.41,134.39,11.16772569]
[1750544655772,5.53921468,134.4,134.39,11.88772569]
[1750544656970,5.53921468,134.4,134.39,19.50772569]
[1750544657279,5.53921468,134.4,134.39,56.76613007]
[1750544657511,9.19777791,134.46,134.44,0.72]
[1750544657512,6.87367197,134.46,134.44,0.72]
[1750544657733,11.16772569,134.49,134.45,11.16772569]
[1750544657734,6.87367197,134.49,134.45,11.16772569]
[1750544658038,5.54712068,134.48,134.44,11.16772569]
[1750544658216,5.54712068,134.47,134.45,11.16772569]
[1750544658418,5.54712068,134.46,134.45,11.16772569]
[1750544658725,11.85772569,134.49,134.43,26.0]
[1750544658910,11.85772569,134.49,134.41,19.36964886]
[1750544658911,11.16772569,134.47,134.41,19.36964886]
[1750544659115,16.70939795,134.46,134.41,11.88772569]
[1750544659325,5.54167226,134.45,134.42,7.43936914]
[1750544659632,11.16772569,134.46,134.42,18.60709483]
[1750544659807,16.70732539,134.45,134.42,7.43936914]
[1750544660009,16.70732539,134.44,134.42,7.43936914]
[1750544660236,11.16772569,134.44,134.42,7.43936914]
[1750544660421,11.16772569,134.45,134.42,7.43936914]
[1750544660924,11.16772569,134.46,134.42,7.43936914]
[1750544661137,5.53789079,134.45,134.42,18.60709483]
[1750544661346,11.16772569,134.46,134.42,18.60709483]
[1750544661538,5.53645541,134.45,134.43,11.16772569]
[1750544661739,5.53537136,134.47,134.42,26.75779199]
[1750544661941,26.0,134.49,134.43,11.16772569]
[1750544662149,16.70308528,134.48,134.43,11.88772569]
[1750544662336,32.87,134.5,134.46,11.16772569]
[1750544662337,11.16772569,134.5,134.46,11.16772569]
[1750544662541,158.0,134.57,134.46,11.16772569]
[1750544662542,18.73139766,134.53,134.49,11.16772569]
[1750544662736,5.53180522,134.52,134.49,11.16772569]
[1750544662932,5.53180522,134.51,134.49,11.16772569]
[1750544663147,5.53180522,134.52,134.49,11.16772569]
[1750544663452,5.52627976,134.52,134.5,7.43494423]
[1750544663633,5.52627976,134.53,134.5,7.43494423]
[1750544664037,5.52627976,134.53,134.5,18.60266992]
[1750544664245,5.52627976,134.54,134.5,18.60266992]
[1750544664443,16.69400545,134.54,134.5,18.60266992]
[1750544664657,11.16772569,134.54,134.5,7.43494423]
[1750544664835,18.58723313,134.54,134.5,7.43494423]
[1750544665034,19.27723313,134.54,134.5,7.43494423]
[1750544665732,19.27723313,134.54,134.46,7.43715603]
[1750544665733,19.27723313,134.51,134.46,7.43715603]
[1750544665933,19.27723313,134.51,134.45,7.43768031]
[1750544665934,18.58723313,134.49,134.45,7.43768031]
[1750544666151,18.58723313,134.48,134.45,7.43768031]
[1750544667133,18.58723313,134.48,134.44,7.43826242]
[1750544667641,26.69,134.51,134.44,26.02549555]
[1750544667963,18.58723313,134.48,134.44,26.74549555]
[1750544669468,1.6025,134.55,134.47,18.58723313]
[1750544669635,19.27723313,134.53,134.48,18.58723313]
[1750544669831,18.58723313,134.5,134.44,44.68356733]
[1750544670038,0.69,134.51,134.45,18.58723313]
[1750544670236,18.58723313,134.5,134.45,18.58723313]
[1750544670752,18.58723313,134.5,134.45,19.30723313]
[1750544671065,18.58723313,134.5,134.46,7.43715603]
[1750544671238,18.58723313,134.5,134.46,26.02438916]
[1750544671438,18.58723313,134.5,134.46,44.61727923]
[1750544671738,18.58723313,134.5,134.46,45.33727923]
[1750544671937,18.58723313,134.51,134.46,45.33727923]
[1750544672854,26.0,134.52,134.46,45.33727923]
[1750544673165,18.58723313,134.51,134.46,45.33727923]
[1750544673337,18.58723313,134.5,134.46,45.33727923]
[1750544673537,18.58723313,134.5,134.46,26.0300461]
[1750544675264,19.27723313,134.5,134.46,26.0300461]
[1750544675648,19.27723313,134.5,134.46,44.61727923]
[1750544676560,26.0,134.52,134.46,7.43715603]
[1750544676561,19.27723313,134.49,134.46,7.43715603]
[1750544676780,18.58723313,134.5,134.46,44.61727923]
[1750544677068,26.69,134.52,134.46,26.0300461]
[1750544677246,18.58723313,134.53,134.48,18.58723313]
[1750544677441,18.58723313,134.53,134.49,18.58723313]
[1750544677661,44.58723313,134.54,134.49,18.58723313]
[1750544678270,18.58723313,134.54,134.5,18.58723313]
[1750544678574,18.58723313,134.54,134.5,7.43494423]
[1750544678746,18.58723313,134.53,134.5,7.43494423]
[1750544679952,19.27723313,134.51,134.47,7.43660295]
[1750544680149,26.69,134.51,134.43,8.15881574]
[1750544680465,26.69,134.51,134.44,18.58723313]
[1750544680466,18.58723313,134.48,134.44,18.58723313]
[1750544680657,18.58723313,134.48,134.45,7.43770918]
[1750544681750,18.58723313,134.47,134.45,7.43770918]
[1750544681947,18.58723313,134.46,134.45,7.43770918]
[1750544682147,18.58723313,134.47,134.45,7.43770918]
[1750544682657,0.73,134.5,134.44,7.43826242]
[1750544682969,18.58723313,134.47,134.44,7.43826242]
[1750544683468,18.58723313,134.48,134.44,44.6211516]
[1750544684166,18.58723313,134.49,134.45,18.58723313]
[1750544684470,18.58723313,134.5,134.45,19.32723313]
[1750544684662,26.0,134.51,134.46,7.43715603]
[1750544684968,18.58723313,134.5,134.46,7.43715603]
[1750544685149,18.58723313,134.5,134.46,26.0300461]
[1750544686653,18.58723313,134.5,134.46,44.61727923]
[1750544687458,18.58723313,134.49,134.46,26.0300461]
[1750544690169,0.73,134.5,134.46,26.0300461]
[1750544690170,18.58723313,134.5,134.46,26.0300461]
[1750544690764,18.58723313,134.49,134.46,26.0300461]
[1750544692384,18.58723313,134.49,134.46,7.43715603]
[1750544692573,19.31723313,134.49,134.46,7.43715603]
[1750544693579,18.64964886,134.51,134.44,7.43826242]
[1750544693880,18.58723313,134.45,134.44,7.43826242]
[1750544694069,19.31723313,134.46,134.44,7.43826242]
[1750544694376,18.58723313,134.46,134.43,7.43881574]
[1750544694903,32.06,134.48,134.43,26.76604887]
[1750544695082,18.58723313,134.47,134.43,26.76604887]
[1750544695269,32.06,134.48,134.44,0.74]
[1750544695582,18.58723313,134.47,134.44,0.74]
[1750544695780,1.6244,134.49,134.44,0.74]
[1750544695781,18.58723313,134.49,134.44,19.32723313]
[1750544696356,18.58723313,134.49,134.46,7.43715603]
[1750544696558,32.04,134.5,134.46,7.43715603]
[1750544696754,18.58723313,134.5,134.46,44.61727923]
[1750544697183,18.58723313,134.5,134.46,26.0300461]
[1750544697564,24.12764791,134.5,134.46,45.35727923]
[1750544697768,18.58723313,134.5,134.46,45.35727923]
[1750544699982,5.54956154,134.5,134.46,26.7700461]
[1750544700202,18.58723313,134.5,134.46,45.35727923]
[1750544700787,26.73,134.52,134.46,26.7700461]
[1750544700999,11.15803593,134.5,134.46,37.92808203]
[1750544702579,5.55606292,134.51,134.47,11.15803593]
[1750544702780,11.15803593,134.52,134.47,11.89803593]
[1750544703291,27.5562,134.53,134.47,11.89803593]
[1750544703292,11.15803593,134.51,134.47,11.89803593]
[1750544704096,28.2862,134.53,134.47,11.89803593]
[1750544704276,11.15803593,134.51,134.48,7.43604997]
[1750544706778,16.71623494,134.52,134.48,26.02617489]
[1750544706980,11.15803593,134.52,134.48,26.02617489]
[1750544707399,11.88803593,134.52,134.48,26.02617489]
[1750544707581,0.73,134.54,134.49,11.89803593]
[1750544707799,5.55743398,134.53,134.49,11.89803593]
[1750544708099,11.88803593,134.54,134.49,11.89803593]
[1750544708288,16.71547598,134.53,134.5,7.43494423]
[1750544708492,11.15803593,134.53,134.5,7.43494423]
[1750544708683,11.88803593,134.54,134.5,18.59298016]
[1750544708881,5.55667131,134.53,134.5,18.59298016]
[1750544709078,11.88803593,134.54,134.5,8.17494423]
[1750544709271,5.55667237,134.53,134.5,19.33298016]
[1750544709572,11.15803593,134.54,134.5,19.33298016]
[1750544709910,5.55649157,134.53,134.5,7.43494423]
[1750544710064,11.15803593,134.54,134.5,7.43494423]
[1750544710065,37.15803593,134.54,134.5,7.43494423]
[1750544710274,5.55636764,134.53,134.5,7.43494423]
[1750544710476,11.15803593,134.53,134.5,7.43494423]
[1750544711490,11.83803593,134.52,134.5,7.43494423]
[1750544711691,0.68,134.52,134.5,7.43494423]
[1750544711892,5.55617119,134.54,134.51,11.15803593]
[1750544712092,11.15803593,134.58,134.53,11.15803593]
[1750544712273,5.55452041,134.57,134.54,11.83803593]
[1750544712472,5.55452041,134.56,134.54,11.83803593]
[1750544712699,5.55452041,134.57,134.54,11.83803593]
[1750544712868,5.55140205,134.58,134.54,11.83803593]
[1750544713064,11.15803593,134.59,134.54,11.83803593]
[1750544713269,27.6111,134.6,134.56,0.68]
[1750544713270,5.55134281,134.58,134.56,0.68]
[1750544713471,5.55134281,134.59,134.56,11.83803593]
[1750544713703,11.15803593,134.63,134.58,11.15803593]
[1750544713876,5.54607482,134.62,134.59,11.15803593]
[1750544714072,11.15803593,134.62,134.58,11.15803593]
[1750544715303,11.15803593,134.62,134.59,7.4299725]
[1750544716002,11.15803593,134.61,134.58,7.43033509]
[1750544716209,26.68,134.61,134.58,7.43033509]
[1750544716416,37.15803593,134.61,134.58,7.43033509]
[1750544717484,11.15803593,134.6,134.57,7.43107676]
[1750544718690,11.83803593,134.6,134.57,7.43107676]
[1750544719013,11.15803593,134.59,134.57,7.43107676]
[1750544719203,11.83803593,134.59,134.57,7.43107676]
[1750544719501,0.68,134.59,134.57,7.43107676]
[1750544719705,11.83803593,134.58,134.54,7.5]
[1750544720014,11.15803593,134.55,134.54,7.5]
[1750544720305,11.83803593,134.56,134.51,18.59242742]
[1750544720506,11.83803593,134.52,134.48,7.43587416]
[1750544720705,11.15803593,134.5,134.48,7.43587416]
[1750544720895,18.59627005,134.5,134.48,7.43587416]
[1750544721605,18.64964886,134.53,134.48,7.43587416]
[1750544721791,18.59627005,134.51,134.48,7.43587416]
[1750544722884,60.1958,134.54,134.48,44.62226913]
[1750544722885,28.2358,134.54,134.48,44.62226913]
[1750544723080,44.59627005,134.54,134.5,18.59627005]
[1750544723592,18.59627005,134.55,134.51,19.27627005]
[1750544723793,0.68,134.57,134.51,19.27627005]
[1750544723986,18.59627005,134.56,134.51,19.27627005]
[1750544724197,33.4958,134.58,134.51,19.27627005]
[1750544724405,18.59627005,134.56,134.51,19.27627005]
[1750544724715,33.4958,134.58,134.51,19.27627005]
[1750544724716,18.59627005,134.55,134.52,7.43383883]
[1750544725206,18.59627005,134.53,134.52,7.43383883]
[1750544725409,26.68,134.55,134.52,7.43383883]
[1750544725606,18.59627005,134.53,134.52,7.43383883]
[1750544726604,18.59627005,134.53,134.5,7.43494423]
[1750544727691,26.68,134.55,134.5,7.43494423]
[1750544727897,44.59627005,134.56,134.51,18.59627005]
[1750544728193,18.59627005,134.54,134.5,44.61857487]
[1750544728608,18.59627005,134.54,134.5,45.29857487]
[1750544728814,18.59627005,134.54,134.5,26.70230482]
[1750544729022,18.59627005,134.54,134.5,45.29857487]
[1750544729221,18.59627005,134.54,134.5,26.70230482]
[1750544729399,18.59627005,134.54,134.5,45.29857487]
[1750544730840,18.59627005,134.53,134.48,8.11604997]
[1750544731046,18.59627005,134.53,134.48,45.30244494]
[1750544731200,18.59627005,134.53,134.48,26.70617489]
[1750544731400,18.59627005,134.53,134.49,18.59627005]
[1750544733018,18.59627005,134.53,134.5,7.43494423]
[1750544736238,18.59627005,134.53,134.49,7.43549706]
[1750544736451,6.21077452,134.55,134.49,7.43549706]
[1750544736452,19.27627005,134.52,134.49,7.43549706]
[1750544736619,18.59627005,134.5,134.48,7.43589282]
[1750544736938,44.59627005,134.52,134.48,26.03216287]
[1750544737116,18.59627005,134.52,134.48,26.03216287]
[1750544737323,18.59627005,134.52,134.48,45.30228779]
[1750544737634,18.59627005,134.52,134.48,26.70601774]
[1750544737840,18.59627005,134.52,134.48,45.30228779]
[1750544740527,18.59627005,134.53,134.48,45.30228779]
[1750544740730,18.59627005,134.53,134.49,19.27627005]
[1750544740930,18.59627005,134.53,134.49,11.8325566]
[1750544740931,11.1525566,134.53,134.49,11.8325566]
[1750544741437,32.6,134.54,134.5,11.1525566]
[1750544741438,43.0725566,134.54,134.5,11.1525566]
[1750544741647,11.1525566,134.55,134.51,11.1525566]
[1750544742546,11.1525566,134.55,134.52,7.43383883]
[1750544742729,6.24728484,134.57,134.52,7.43383883]
[1750544742919,11.1525566,134.56,134.52,37.88099251]
[1750544745139,11.1525566,134.56,134.52,26.72843591]
[1750544745337,11.1525566,134.55,134.52,26.01843591]
[1750544747045,11.1525566,134.56,134.52,37.17099251]
[1750544747428,11.1525566,134.57,134.53,0.71]
[1750544747745,44.95627699,134.58,134.53,11.8625566]
[1750544747949,11.1525566,134.57,134.53,11.8625566]
[1750544748146,12.7083566,134.58,134.54,11.1525566]
[1750544748450,11.1525566,134.59,134.56,7.43162901]
[1750544748630,11.1525566,134.6,134.56,18.58418561]
[1750544749049,17.40047699,134.61,134.56,37.87325814]
[1750544749249,11.1525566,134.62,134.58,37.1525566]
[1750544749470,5.53792039,134.63,134.59,11.1525566]
[1750544749628,23.06587728,134.64,134.6,11.8625566]
[1750544749830,23.06587728,134.64,134.61,26.0]
[1750544750559,23.06587728,134.64,134.62,7.42831674]
[1750544750929,23.06587728,134.64,134.61,26.0]
[1750544750930,0.71,134.63,134.61,33.42870353]
[1750544751260,11.8625566,134.63,134.61,33.42870353]
[1750544751629,11.1525566,134.63,134.61,33.42870353]
[1750544752027,23.06587728,134.64,134.61,33.42870353]
[1750544752329,11.91332068,134.64,134.61,33.42870353]
[1750544752525,11.91332068,134.64,134.61,18.58126013]
[1750544752743,11.91332068,134.64,134.61,37.15343158]
[1750544754040,11.91332068,134.64,134.61,37.86343158]
[1750544754246,11.91332068,134.64,134.62,11.8625566]
[1750544754458,11.91332068,134.64,134.63,11.1525566]
[1750544754660,11.1525566,134.67,134.63,11.8625566]
[1750544755479,11.1525566,134.67,134.64,7.4272133]
[1750544755834,0.71,134.67,134.64,7.4272133]
[1750544756039,11.1525566,134.66,134.64,7.4272133]
[1750544756340,11.8625566,134.67,134.64,7.4272133]
[1750544756534,11.1525566,134.67,134.64,7.4272133]
[1750544757970,11.8625566,134.66,134.62,18.58087334]
[1750544762062,11.8625566,134.66,134.62,7.42831674]
[1750544762243,11.1525566,134.67,134.63,11.8625566]
[1750544762944,34.7129,134.69,134.63,11.8625566]
[1750544763266,8.7129,134.69,134.64,7.4272133]
[1750544763452,26.0,134.7,134.64,26.70524657]
[1750544763771,2.2585,134.72,134.65,8.11]
[1750544763968,13.4110566,134.72,134.67,11.1525566]
[1750544764150,11.1525566,134.71,134.66,11.1525566]
[1750544764469,11.1525566,134.71,134.66,11.8625566]
[1750544764667,11.1525566,134.69,134.65,7.4]
[1750544764868,11.8625566,134.69,134.65,7.4]
[1750544765571,11.1525566,134.67,134.65,14.82665911]
[1750544765760,11.8625566,134.67,134.65,14.82665911]
[1750544766452,11.1525566,134.66,134.65,14.82665911]
[1750544767574,11.8625566,134.67,134.65,14.82665911]
[1750544768382,39.24395727,134.7,134.65,14.82665911]
[1750544768383,26.0,134.71,134.66,11.1525566]
[1750544768671,11.1525566,134.7,134.66,11.1525566]
[1750544769054,26.71,134.71,134.66,11.1525566]
[1750544769252,26.71,134.71,134.65,44.54586999]
[1750544769474,11.1525566,134.69,134.65,14.82665911]
[1750544769666,0.71,134.7,134.65,14.82665911]
[1750544769667,11.1525566,134.68,134.65,14.82665911]
[1750544770076,11.8625566,134.66,134.61,0.71]
[1750544770378,11.1525566,134.65,134.61,7.42886858]
[1750544771169,11.1525566,134.65,134.61,26.71104003]
[1750544771364,11.1525566,134.64,134.61,26.00104003]
[1750544771574,11.1525566,134.65,134.61,26.00104003]
[1750544772359,11.1525566,134.65,134.61,37.87359663]
[1750544772677,11.1525566,134.65,134.62,0.72]
[1750544772976,11.1525566,134.65,134.61,37.87359663]
[1750544773357,26.0,134.66,134.61,37.87359663]
[1750544773563,11.1525566,134.65,134.61,37.87359663]
[1750544775978,26.0,134.66,134.61,7.42886858]
[1750544775979,11.1525566,134.64,134.61,7.42886858]
[1750544776179,11.8325566,134.64,134.61,7.42886858]
[1750544776676,11.1525566,134.64,134.61,7.42886858]
[1750544776857,11.1525566,134.63,134.61,7.42886858]
[1750544777593,11.1525566,134.64,134.61,7.42886858]
[1750544778175,28.2842,134.66,134.61,7.42886858]
[1750544778479,11.8325566,134.62,134.6,7.4]
[1750544778653,11.1525566,134.61,134.6,14.8294052]
[1750544779279,0.68,134.62,134.6,14.8294052]
[1750544779480,11.1525566,134.62,134.6,14.8294052]
[1750544779670,11.1525566,134.61,134.6,14.8294052]
[1750544780271,9.19258892,134.61,134.6,14.8294052]
[1750544785761,11.1525566,134.61,134.6,14.8294052]
[1750544786574,11.1525566,134.61,134.6,7.4]
[1750544786796,0.68,134.57,134.5,25.3762566]
[1750544786965,11.1525566,134.54,134.51,26.02037022]
[1750544787288,11.1525566,134.54,134.51,7.43439149]
[1750544787469,11.1525566,134.52,134.51,7.43439149]
[1750544787678,11.1525566,134.53,134.51,7.43439149]
[1750544788985,32.20605246,134.56,134.51,7.43439149]
[1750544789184,11.1525566,134.55,134.52,0.72]
[1750544789489,11.1525566,134.56,134.52,0.72]
[1750544790265,11.1525566,134.56,134.53,7.43328625]
[1750544790668,11.1525566,134.57,134.53,26.73650188]
[1750544790868,11.1525566,134.56,134.53,26.73650188]
[1750544791297,11.1525566,134.57,134.53,26.73650188]
[1750544792517,11.1525566,134.56,134.53,26.01650188]
[1750544794202,11.1525566,134.56,134.53,26.73650188]
[1750544796803,11.1525566,134.57,134.53,26.73650188]
[1750544798204,11.1525566,134.57,134.53,37.16905848]